bitfinex-derivatives/quotes_SOLF0:USTF0_20260123
["timestamp","ask_amount","ask_price","bid_price","bid_amount"]
[1769176691547,3.19618065,126.86,126.79,2.12563425]
[1769176691548,3.19618065,126.88,126.82,5.36112734]
[1769176692341,5.3218149,126.88,126.82,3.23549309]
[1769176692653,3.19618065,126.87,126.82,3.23549309]
[1769176692852,3.19618065,126.87,126.81,7.1062]
[1769176693146,5.3218149,126.86,126.81,7.1062]
[1769176694746,3.19618065,126.85,126.8,3.23549309]
[1769176696553,3.19618065,126.85,126.8,10.34259309]
[1769176700855,10.30068065,126.85,126.79,7.1078]
[1769176701156,3.19618065,126.84,126.78,3.23549309]
[1769176701953,12.4270149,126.84,126.78,10.34389309]
[1769176704862,12.42685653,126.84,126.78,10.34389309]
[1769176706757,7.1046,126.85,126.8,3.23549309]
[1769176706962,10.30078065,126.85,126.8,3.23549309]
[1769176707352,3.19618065,126.85,126.8,3.23549309]
[1769176707747,3.19618065,126.85,126.78,5.36096897]
[1769176707748,3.19618065,126.84,126.78,5.36096897]
[1769176709068,3.19618065,126.84,126.79,7.1078]
[1769176709263,3.19618065,126.84,126.78,5.36096897]
[1769176709861,3.19618065,126.84,126.78,10.34349309]
[1769176710465,3.19618065,126.84,126.79,7.1077]
[1769176711365,3.19618065,126.84,126.79,10.34319309]
[1769176717261,3.19618065,126.84,126.79,3.23549309]
[1769176720470,10.30128065,126.84,126.79,3.23549309]
[1769176720673,3.22080448,126.83,126.77,3.33308886]
[1769176721667,10.32690448,126.83,126.77,3.33308886]
[1769176723276,10.32690448,126.83,126.78,3.33308886]
[1769176726378,3.22080448,126.83,126.78,3.33308886]
[1769176731979,3.22080448,126.82,126.76,10.44258886]
[1769176732177,3.22080448,126.82,126.76,3.33308886]
[1769176736379,3.22080448,126.81,126.76,10.44248886]
[1769176736570,3.22080448,126.81,126.75,2.12547588]
[1769176736776,3.22080448,126.8,126.75,2.12547588]
[1769176737467,3.22080448,126.8,126.74,10.44328886]
[1769176737674,3.22080448,126.8,126.75,10.44308886]
[1769176739381,3.22080448,126.8,126.76,7.1095]
[1769176740977,3.22080448,126.82,126.77,12.56746474]
[1769176742083,3.22080448,126.82,126.77,10.44198886]
[1769176743680,3.22080448,126.82,126.78,2.12547588]
[1769176750686,0.05702495,126.81,126.78,2.12547588]
[1769176751689,0.05702495,126.81,126.78,2.184252]
[1769176752991,0.05702495,126.81,126.78,0.05877612]
[1769176753188,7.1052,126.84,126.79,5.61614527]
[1769176753585,10.31500869,126.84,126.79,5.61614527]
[1769176754696,10.31500869,126.84,126.8,0.05005158]
[1769176755588,3.20980869,126.83,126.8,0.05005158]
[1769176760092,3.20980869,126.83,126.77,3.49066939]
[1769176760302,3.20980869,126.81,126.75,5.61614527]
[1769176760799,3.20980869,126.81,126.75,3.49066939]
[1769176761002,3.20980869,126.81,126.75,5.61614527]
[1769176762001,10.31670869,126.81,126.75,12.72624527]
[1769176762201,3.20980869,126.8,126.75,12.72624527]
[1769176762700,3.20980869,126.79,126.75,3.49066939]
[1769176762998,3.20980869,126.79,126.75,5.61614527]
[1769176764401,3.20980869,126.79,126.75,2.12547588]
[1769176766997,3.20980869,126.79,126.75,2.12624695]
[1769176775397,7.1074,126.8,126.75,5.50194831]
[1769176780509,10.36652634,126.8,126.75,5.50194831]
[1769176783215,10.36652634,126.8,126.75,12.61204831]
[1769176783615,10.36562634,126.82,126.77,5.50194831]
[1769176783808,5.85633069,126.81,126.77,5.50194831]
[1769176784001,10.36562634,126.82,126.77,5.50194831]
[1769176784914,10.36562634,126.82,126.77,12.61084831]
[1769176785518,3.25912634,126.86,126.79,2.12624695]
[1769176785815,3.25912634,126.84,126.79,2.12624695]
[1769176786915,10.36422634,126.84,126.79,2.12624695]
[1769176787110,10.36422634,126.84,126.79,9.23414695]
[1769176787111,3.25912634,126.84,126.79,9.23414695]
[1769176787816,3.25912634,126.84,126.8,7.1073]
[1769176790612,3.25912634,126.86,126.81,9.23284695]
[1769176793610,10.36312634,126.86,126.81,9.23284695]
[1769176793814,3.25912634,126.85,126.81,9.23284695]
[1769176799018,7.104,126.86,126.81,12.60854831]
[1769176799422,10.36312634,126.86,126.81,12.60854831]
[1769176800521,3.25912634,126.85,126.81,2.12624695]
[1769176801020,10.36372634,126.85,126.79,10.48350136]
[1769176801224,10.36372634,126.85,126.8,2.12624695]
[1769176801825,0.05323664,126.84,126.81,0.05163197]
[1769176815631,3.51436658,126.88,126.83,3.3902952]
[1769176815829,3.51436658,126.88,126.84,2.12624695]
[1769176816630,3.51436658,126.88,126.85,2.12624695]
[1769176817028,3.51436658,126.88,126.85,2.17868685]
[1769176821237,3.51436658,126.9,126.85,12.67328205]
[1769176822035,3.51436658,126.9,126.85,0.0524399]
[1769176822229,3.51436658,126.9,126.85,2.17868685]
[1769176822943,10.61626658,126.9,126.85,2.17868685]
[1769176824640,3.51436658,126.88,126.85,0.0524399]
[1769176824844,3.51436658,126.88,126.82,2.12624695]
[1769176826144,10.61766658,126.88,126.82,9.23234695]
[1769176827043,10.61766658,126.88,126.82,9.23001406]
[1769176827252,3.51436658,126.87,126.82,9.23001406]
[1769176828340,3.51436658,126.87,126.82,12.62030926]
[1769176829146,10.61776658,126.87,126.82,12.62030926]
[1769176829344,10.61776658,126.87,126.82,5.51420926]
[1769176831349,3.51436658,126.89,126.84,3.3902952]
[1769176831550,3.51436658,126.87,126.83,2.12391406]
[1769176832045,3.30550936,126.86,126.81,12.62100926]
[1769176832948,10.40950936,126.86,126.81,12.62100926]
[1769176833336,10.40950936,126.86,126.81,5.51420926]
[1769176833540,3.30550936,126.85,126.81,5.51420926]
[1769176833948,10.41020936,126.85,126.81,5.51420926]
[1769176834350,3.30550936,126.85,126.81,5.51420926]
[1769176835751,3.30550936,126.85,126.79,12.54700429]
[1769176836553,3.30550936,126.85,126.8,7.1072]
[1769176837052,3.30550936,126.85,126.8,12.54640429]
[1769176839852,3.30550936,126.85,126.8,3.31529023]
[1769176841849,3.30550936,126.87,126.82,2.12391406]
[1769176842055,3.30550936,126.87,126.82,5.43920429]
[1769176844647,7.1034,126.88,126.83,3.31529023]
[1769176844955,10.40780936,126.9,126.84,5.43920429]
[1769176845156,5.86674983,126.89,126.84,5.43920429]
[1769176845549,16.27455919,126.89,126.84,5.43920429]
[1769176845750,10.40780936,126.89,126.84,5.43920429]
[1769176847656,3.30550936,126.89,126.84,5.43920429]
[1769176849146,10.40780936,126.89,126.84,5.43920429]
[1769176852555,5.84147815,126.88,126.84,3.31529023]
[1769176853656,3.30550936,126.87,126.82,10.42149023]
[1769176860167,3.30550936,126.87,126.81,2.12391406]
[1769176860367,3.30550936,126.86,126.8,3.31529023]
[1769176861873,10.40960936,126.86,126.8,10.42249023]
[1769176862275,3.30550936,126.86,126.8,3.31529023]
[1769176862482,5.84750036,126.85,126.8,3.31529023]
[1769176863175,3.30550936,126.86,126.8,3.31529023]
[1769176863367,3.32766909,126.85,126.79,2.12391406]
[1769176863561,3.32766909,126.83,126.76,2.12391406]
[1769176863766,3.32766909,126.82,126.76,5.41565507]
[1769176864466,3.32766909,126.82,126.77,3.29174101]
[1769176866169,5.54848706,126.81,126.75,3.39011388]
[1769176866374,3.424573,126.8,126.75,3.39011388]
[1769176866680,10.532073,126.8,126.75,3.39011388]
[1769176867568,10.532573,126.79,126.72,2.12391406]
[1769176868173,10.532573,126.79,126.71,16.2758388]
[1769176868472,10.532573,126.79,126.72,2.12391406]
[1769176868866,7.1085,126.78,126.72,2.12391406]
[1769176869274,3.424573,126.77,126.71,9.1638388]
[1769176869479,5.54848706,126.76,126.71,9.1638388]
[1769176869672,3.424573,126.75,126.67,1.64812959]
[1769176869867,3.424573,126.67,126.6,1.64812959]
[1769176870178,5.54848706,126.66,126.6,1.64812959]
[1769176870373,3.424573,126.65,126.58,1.64812959]
[1769176870580,2.12391406,126.69,126.61,1.64812959]
[1769176870871,3.424573,126.68,126.61,1.64812959]
[1769176871269,7.1138,126.69,126.62,3.77204365]
[1769176871772,3.424573,126.7,126.64,2.12391406]
[1769176871970,3.424573,126.7,126.64,3.77204365]
[1769176872168,3.424573,126.75,126.67,1.64812959]
[1769176872364,3.424573,126.75,126.68,2.12391406]
[1769176872568,10.534873,126.75,126.68,3.77204365]
[1769176872970,2.12391406,126.72,126.65,1.64812959]
[1769176873172,5.54848706,126.72,126.65,1.64812959]
[1769176873967,12.66048706,126.72,126.65,1.64812959]
[1769176875179,10.536573,126.72,126.65,1.64812959]
[1769176875678,10.535473,126.74,126.66,3.77204365]
[1769176876272,10.535473,126.74,126.66,1.64812959]
[1769176876477,10.535473,126.74,126.67,2.12391406]
[1769176878977,10.535473,126.74,126.69,2.12391406]
[1769176879282,3.424573,126.74,126.69,2.12391406]
[1769176885084,0.06050611,126.73,126.7,1.70592943]
[1769176885472,3.424573,126.76,126.7,1.70592943]
[1769176885781,3.424573,126.76,126.71,2.12391406]
[1769176888785,3.424573,126.76,126.7,10.94264349]
[1769176889081,3.424573,126.76,126.7,10.9461877]
[1769176890575,3.424573,126.75,126.7,0.05779984]
[1769176890987,3.424573,126.75,126.68,10.88908786]
[1769176891379,10.534773,126.75,126.7,0.0565468]
[1769176891581,3.424573,126.74,126.7,0.0565468]
[1769176894389,5.55203127,126.74,126.7,0.0565468]
[1769176895388,3.424573,126.74,126.7,0.0565468]
[1769176903292,5.55203127,126.74,126.7,0.0565468]
[1769176903594,3.17597519,126.73,126.7,0.0565468]
[1769176905804,3.17597519,126.71,126.66,7.1149]
[1769176911406,3.17597519,126.71,126.66,8.82435374]
[1769176911608,7.1122,126.72,126.67,1.70945374]
[1769176911808,10.28817519,126.72,126.67,1.70945374]
[1769176912106,3.17597519,126.72,126.67,8.82395374]
[1769176914703,3.17597519,126.72,126.68,7.114]
[1769176915005,5.30343346,126.74,126.68,10.95091201]
[1769176915408,3.17597519,126.78,126.72,1.70945374]
[1769176915904,10.28447519,126.78,126.72,1.70945374]
[1769176916105,5.30343346,126.77,126.7,1.70945374]
[1769176916904,5.30343346,126.77,126.71,7.1123]
[1769176917105,5.30343346,126.77,126.71,8.82175374]
[1769176919006,5.30343346,126.77,126.71,10.94921201]
[1769176919610,3.17597519,126.77,126.72,7.1118]
[1769176920609,3.17597519,126.76,126.7,7.1126]
[1769176921609,3.17597519,126.76,126.71,7.1124]
[1769176921807,3.17597519,126.78,126.72,2.12745827]
[1769176922401,3.17597519,126.78,126.72,3.83510189]
[1769176923409,3.25578071,126.8,126.73,1.70764362]
[1769176923614,3.25578071,126.8,126.74,3.83510189]
[1769176924012,3.25578071,126.85,126.76,2.12745827]
[1769176924318,3.25578071,126.83,126.76,3.83510189]
[1769176924616,3.25578071,126.83,126.77,7.109]
[1769176925110,3.25578071,126.87,126.78,3.83510189]
[1769176925308,16.19268593,126.86,126.79,7.1079]
[1769176925509,3.25578071,126.85,126.79,7.1079]
[1769176926211,10.36048071,126.85,126.78,3.83510189]
[1769176926904,3.19140643,126.84,126.78,3.83510189]
[1769176927306,3.19140643,126.84,126.78,10.94350189]
[1769176928713,3.19140643,126.84,126.79,7.1078]
[1769176929017,3.19140643,126.84,126.78,3.83510189]
[1769176929210,3.19140643,126.84,126.78,10.94350189]
[1769176930819,3.19140643,126.84,126.79,7.1078]
[1769176931312,2.12745827,126.86,126.79,7.1078]
[1769176931517,3.19140643,126.86,126.8,9.23465827]
[1769176932217,3.19140643,126.86,126.81,7.1067]
[1769176933515,12.4217647,126.88,126.81,8.81221647]
[1769176933721,3.19140643,126.88,126.82,7.106]
[1769176935125,3.19140643,126.88,126.82,9.23345827]
[1769176936230,3.19140643,126.88,126.82,10.93897474]
[1769176937029,10.29300643,126.91,126.84,1.70551647]
[1769176937221,5.3188647,126.91,126.84,1.70551647]
[1769176937420,3.19140643,126.9,126.84,1.70551647]
[1769176939123,10.29320643,126.9,126.84,1.70551647]
[1769176941128,3.19140643,126.88,126.83,7.1056]
[1769176941324,3.19140643,126.88,126.82,1.70551647]
[1769176941626,10.29360643,126.9,126.83,1.70551647]
[1769176941923,3.19140643,126.88,126.83,1.70551647]
[1769176942130,3.19140643,126.88,126.81,3.83297474]
[1769176942435,3.19140643,126.88,126.82,7.1062]
[1769176943934,3.19140643,126.88,126.82,8.81171647]
[1769176944734,3.19140643,126.88,126.83,7.1056]
[1769176944930,2.12745827,126.89,126.83,1.70551647]
[1769176945130,3.19140643,126.9,126.84,1.70551647]
[1769176945534,3.19140643,126.9,126.84,8.81051647]
[1769176950037,110.4482,126.93,126.86,7.1034]
[1769176950038,10.29200643,126.92,126.86,7.1034]
[1769176951838,3.19140643,126.92,126.87,7.1031]
[1769176952139,3.19140643,126.92,126.87,1.70261016]
[1769176952935,12.59440171,126.94,126.88,7.1028]
[1769176953137,12.59440171,126.94,126.88,8.80541016]
[1769176953340,9.22281361,126.94,126.89,1.70261016]
[1769176954039,10.4703881,126.96,126.89,3.82562377]
[1769176956039,10.4703881,126.96,126.9,7.1015]
[1769176956236,3.3715881,126.94,126.87,3.82562377]
[1769176956439,5.49460171,126.94,126.87,3.82562377]
[1769176956837,3.3715881,126.94,126.88,1.70261016]
[1769176957038,3.3715881,126.94,126.89,1.70261016]
[1769176957535,5.49460171,126.96,126.89,3.82562377]
[1769176957943,5.49460171,126.96,126.91,7.1011]
[1769176958636,3.3715881,126.96,126.92,7.1004]
[1769176958946,2.12301361,126.97,126.92,7.1004]
[1769176959337,3.3715881,127.0,126.93,8.80251016]
[1769176959743,2.12301361,126.99,126.93,8.80251016]
[1769176959939,5.49460171,126.99,126.93,8.80251016]
[1769176960141,3.3715881,126.98,126.93,1.70261016]
[1769176960341,3.3715881,126.98,126.91,1.70261016]
[1769176960948,3.3715881,126.98,126.92,7.1006]
[1769176965251,10.4688881,126.98,126.92,7.1006]
[1769176965646,3.3715881,126.96,126.9,7.1012]
[1769176966060,3.3715881,126.94,126.86,1.70261016]
[1769176966248,2.12301361,126.93,126.87,1.70261016]
[1769176967050,2.12301361,126.93,126.88,7.1028]
[1769176969855,2.12231498,126.93,126.88,7.1028]
[1769176972158,5.49390308,126.93,126.87,8.80591016]
[1769176972459,2.12231498,126.91,126.87,8.80591016]
[1769176975670,2.12231498,126.91,126.85,8.80671016]
[1769176977767,12.59530308,126.91,126.85,1.70261016]
[1769176980469,12.59530308,126.91,126.85,8.80691016]
[1769176981776,5.49390308,126.91,126.86,8.80621016]
[1769176985172,5.61487416,126.93,126.87,8.80989657]
[1769176985475,5.61487416,126.93,126.87,1.70649657]
[1769176985675,3.49255918,126.92,126.87,1.70649657]
[1769176985874,3.49255918,126.92,126.85,1.70649657]
[1769176986477,3.51226901,126.9,126.85,1.70649657]
[1769176987578,3.51226901,126.9,126.85,8.81079657]
[1769176988674,7.1012,126.91,126.85,8.81079657]
[1769176988870,5.63458399,126.92,126.86,1.7016324]
[1769176989081,12.73528399,126.92,126.86,1.7016324]
[1769176989482,7.1001,126.93,126.87,1.7016324]
[1769176989686,10.61236901,126.93,126.87,1.7016324]
[1769176989987,7.0992,126.95,126.89,1.7016324]
[1769176990283,10.61146901,126.95,126.89,1.7016324]
[1769176994084,10.61146901,126.95,126.89,8.8038324]
[1769176995786,3.51226901,126.93,126.88,2.12231498]
[1769176995987,3.51226901,126.93,126.87,1.7016324]
[1769176996986,10.61246901,126.93,126.87,8.8049324]
[1769176997884,3.51226901,126.92,126.86,2.12231498]
[1769176998978,7.1012,126.91,126.86,2.12231498]
[1769176999384,3.51226901,126.92,126.86,2.12231498]
[1769176999687,3.51226901,126.92,126.86,3.82394738]
[1769177000981,10.61286901,126.92,126.86,10.92784738]
[1769177008893,10.61286901,126.92,126.86,8.8055324]
[1769177009993,3.51226901,126.92,126.87,7.1034]
[1769177010497,10.61286901,126.92,126.86,10.92784738]
[1769177010996,10.61286901,126.92,126.86,10.92773415]
[1769177014501,3.51226901,126.92,126.87,7.1034]
[1769177015296,3.21817125,126.94,126.88,7.1028]
[1769177015496,5.83937137,126.93,126.88,7.1028]
[1769177015908,9.05754262,126.93,126.88,7.1028]
[1769177016099,3.21817125,126.93,126.88,7.1028]
[1769177018606,12.440573,126.93,126.87,8.80617384]
[1769177019401,9.05650095,126.92,126.87,8.80617384]
[1769177019706,3.21817125,126.92,126.87,8.80617384]
[1769177021211,3.21817125,126.92,126.88,7.1026]
[1769177025204,10.31717125,126.95,126.89,8.80507384]
[1769177025609,3.21817125,126.95,126.89,8.80507384]
[1769177027811,3.21817125,126.95,126.9,8.80447384]
[1769177033317,10.31707125,126.95,126.9,1.70277384]
[1769177035716,10.31707125,126.95,126.89,7.1022]
[1769177038817,10.31707125,126.95,126.89,8.80497384]
[1769177040314,3.21817125,126.95,126.9,7.1017]
[1769177040620,3.21817125,126.95,126.9,1.70277384]
[1769177042018,3.21817125,126.95,126.9,8.80447384]
[1769177048830,12.6110799,126.97,126.91,1.70160081]
[1769177049130,12.6110799,126.97,126.91,8.80260081]
[1769177049530,3.39057815,126.96,126.91,8.80260081]
[1769177053235,10.48897815,126.96,126.91,8.80260081]
[1769177055737,10.48897815,126.96,126.91,1.70160081]
[1769177056535,3.39057815,126.96,126.91,1.70160081]
[1769177056738,3.39057815,126.95,126.89,3.82380256]
[1769177057038,3.39057815,126.95,126.89,1.70160081]
[1769177057239,3.39057815,126.93,126.88,7.1024]
[1769177057841,3.39057815,126.93,126.88,8.80400081]
[1769177058040,10.49067815,126.93,126.88,8.80400081]
[1769177058339,3.39057815,126.93,126.88,8.80400081]
[1769177058944,2.12220175,126.94,126.89,1.70160081]
[1769177059144,2.12220175,126.94,126.89,8.80390081]
[1769177059738,10.48957815,126.95,126.89,8.80390081]
[1769177059940,3.39057815,126.95,126.9,8.80330081]
[1769177069963,3.39057815,126.95,126.91,7.1011]
[1769177073875,7.0969,126.99,126.94,1.70164044]
[1769177074063,3.24147527,127.0,126.94,1.70164044]
[1769177074064,5.8547064,126.98,126.94,1.70164044]
[1769177074265,3.24147527,126.99,126.94,1.70164044]
[1769177074460,9.09430731,126.98,126.92,8.80194044]
[1769177074671,3.24147527,126.98,126.92,8.80194044]
[1769177074972,11.21503515,126.97,126.92,1.70164044]
[1769177075169,3.24147527,126.96,126.92,1.70164044]
[1769177075383,3.24147527,126.96,126.9,8.80284044]
[1769177076262,10.33997527,126.96,126.9,1.70164044]
[1769177081775,3.24147527,126.95,126.9,1.70164044]
[1769177083872,3.24147527,126.95,126.9,8.80334044]
[1769177087978,5.36256957,126.95,126.9,1.70164044]
[1769177090378,3.24147527,126.95,126.9,1.70164044]
[1769177090579,3.24147527,126.95,126.9,8.80324044]
[1769177092275,3.24147527,126.97,126.92,8.80224044]
[1769177094390,3.24147527,126.97,126.93,7.0998]
[1769177094582,5.36256957,126.99,126.93,8.80144044]
[1769177094784,5.85213888,126.98,126.93,8.80144044]
[1769177096185,9.09361415,126.98,126.93,8.80144044]
[1769177096380,3.24147527,126.98,126.93,8.80144044]
[1769177100791,3.24147527,126.97,126.91,10.92353474]
[1769177101881,10.33937527,126.97,126.91,10.92353474]
[1769177102282,10.33937527,126.97,126.92,1.70584318]
[1769177102479,3.24147527,126.97,126.92,1.70584318]
[1769177103385,5.39437923,126.99,126.93,1.70584318]
[1769177103582,5.85588547,126.98,126.93,1.70584318]
[1769177103890,5.39437923,126.99,126.93,1.70584318]
[1769177104689,3.27328493,126.99,126.93,3.82693748]
[1769177104881,3.27328493,126.99,126.94,8.80524318]
[1769177105688,3.27328493,126.99,126.94,1.70584318]
[1769177109395,3.27328493,126.99,126.94,8.80524318]
[1769177110495,3.27328493,126.99,126.95,1.70207081]
[1769177110791,3.359746,127.0,126.95,1.70207081]
[1769177110994,5.85140276,126.99,126.95,1.70207081]
[1769177111791,5.85140276,126.99,126.95,8.80097081]
[1769177112499,305.20280409,127.02,126.96,8.80027081]
[1769177112698,5.85055934,127.01,126.96,8.80027081]
[1769177113494,305.20280409,127.02,126.96,8.80027081]
[1769177114494,312.29810409,127.02,126.96,8.80027081]
[1769177114700,3.359746,127.01,126.96,8.80027081]
[1769177116304,3.359746,127.01,126.96,10.92136511]
[1769177116706,3.359746,127.01,126.96,8.80027081]
[1769177117109,9.2155943,127.03,126.95,2.1210943]
[1769177117110,5.4808403,127.03,126.97,1.70207081]
[1769177117407,5.4808403,127.03,126.97,3.82316511]
[1769177117701,3.359746,127.03,126.98,8.79907081]
[1769177117906,3.359746,127.03,126.98,1.70207081]
[1769177118907,5.4808403,127.05,126.98,1.70207081]
[1769177119701,3.359746,127.05,126.98,1.70207081]
[1769177119900,3.359746,127.05,127.0,7.0961]
[1769177120702,3.359746,127.05,127.0,8.79817081]
[1769177120902,3.359746,127.07,127.01,7.0954]
[1769177121914,3.359746,127.06,127.01,7.0954]
[1769177122602,3.359746,127.06,127.01,8.79747081]
[1769177124703,12.5729403,127.08,127.02,1.70207081]
[1769177125299,10.451946,127.07,127.02,1.70207081]
[1769177129008,3.359746,127.07,127.02,8.79697081]
[1769177130308,3.359746,127.07,127.02,1.70207081]
[1769177130815,5.4808403,127.07,127.02,1.70207081]
[1769177132009,12.5735403,127.07,127.02,1.70207081]
[1769177132210,3.18042147,127.06,127.0,1.70159347]
[1769177132408,5.30151577,127.06,127.0,1.70159347]
[1769177133012,3.18042147,127.05,127.0,1.70159347]
[1769177133319,3.18042147,127.05,127.0,8.79769347]
[1769177133516,5.29833318,127.07,127.01,1.70159347]
[1769177133716,3.18042147,127.07,127.01,1.70159347]
[1769177134517,10.27272147,127.07,127.01,8.79709347]
[1769177136119,3.18042147,127.06,127.01,8.79709347]
[1769177137812,3.18042147,127.08,127.02,1.70159347]
[1769177138914,3.18042147,127.08,127.03,7.0944]
[1769177139309,3.18042147,127.08,127.03,1.70159347]
[1769177140212,3.18042147,127.08,127.04,7.0939]
[1769177140709,3.18042147,127.07,127.01,3.81950518]
[1769177141312,3.18042147,127.07,127.02,1.70159347]
[1769177143015,3.18042147,127.07,127.02,8.79609347]
[1769177144318,3.18042147,127.06,127.0,8.79719347]
[1769177144820,3.18042147,127.05,127.0,7.0956]
[1769177145016,3.18042147,127.04,126.98,8.79829347]
[1769177146625,3.18042147,127.04,126.99,8.79809347]
[1769177146826,3.18042147,127.04,126.99,10.91600518]
[1769177151034,3.18042147,127.04,126.99,8.79809347]
[1769177154433,3.18042147,127.04,127.0,7.0959]
[1769177154623,12.39113318,127.06,127.0,8.79749347]
[1769177155028,3.18042147,127.05,127.0,8.79749347]
[1769177155230,3.18042147,127.07,127.01,1.70159347]
[1769177155529,3.18042147,127.07,127.02,1.70159347]
[1769177157035,3.18042147,127.07,127.02,8.79659347]
[1769177159538,10.27272147,127.07,127.02,1.70159347]
[1769177162444,12.39063318,127.07,127.02,1.70159347]
[1769177165441,3.44179117,127.06,127.01,7.0953]
[1769177165636,10.53459117,127.06,127.0,10.91184366]
[1769177167146,10.53459117,127.06,127.01,2.06128863]
[1769177167941,3.59319276,127.04,127.0,7.0961]
[1769177174854,3.59319276,127.04,127.01,7.0955]
[1769177175154,3.59319276,127.06,127.01,7.0955]
[1769177175544,3.59319276,127.06,127.01,9.15678863]
[1769177175745,10.68489276,127.08,127.02,9.15628863]
[1769177177055,7.0922,127.07,127.02,9.15628863]
[1769177177949,10.68489276,127.08,127.02,9.15628863]
[1769177179859,3.59319276,127.08,127.03,7.0944]
[1769177181151,10.68489276,127.08,127.02,11.27420034]
[1769177184158,3.59319276,127.07,127.02,11.27420034]
[1769177184359,3.59319276,127.07,127.02,9.15628863]
[1769177185360,3.59319276,127.06,127.01,7.0955]
[1769177190563,3.59319276,127.06,127.02,7.095]
[1769177190751,3.59319276,127.06,127.0,4.17920034]
[1769177192060,3.59319276,127.06,127.01,7.0956]
[1769177194367,3.59319276,127.06,127.01,8.79556783]
[1769177196871,10.68599276,127.06,127.01,8.79556783]
[1769177197565,10.68599276,127.06,127.01,1.69996783]
[1769177197771,3.35590698,127.05,127.0,9.21364479]
[1769177198470,3.35590698,127.05,127.0,10.91361262]
[1769177199872,3.35590698,127.04,126.99,7.0966]
[1769177200862,3.35590698,127.04,126.99,8.79656783]
[1769177208376,3.35590698,127.03,126.97,8.79736783]
[1769177208967,3.35590698,127.03,126.98,8.79716783]
[1769177209170,12.56695177,127.05,126.99,1.69996783]
[1769177210171,3.35590698,127.04,126.99,1.69996783]
[1769177210879,3.35590698,127.03,126.98,9.21474479]
[1769177211383,3.35590698,127.03,126.98,10.91471262]
[1769177213082,5.47345177,127.09,127.0,3.81751262]
[1769177213279,3.35590698,127.07,127.02,2.11754479]
[1769177213980,10.44830698,127.07,127.02,2.11754479]
[1769177214477,7.0928,127.06,127.02,2.11754479]
[1769177214682,3.35590698,127.05,127.02,2.11754479]
[1769177215279,7.0928,127.06,127.02,2.11754479]
[1769177215481,10.44870698,127.06,127.02,2.11754479]
[1769177218079,10.44810698,127.08,127.02,3.81751262]
[1769177220880,3.35590698,127.07,127.02,3.81751262]
[1769177221193,3.35590698,127.07,127.0,3.81751262]
[1769177221380,10.44930698,127.05,127.0,3.81751262]
[1769177223282,3.35590698,127.05,127.0,3.81751262]
[1769177225988,3.35590698,127.05,127.02,2.11754479]
[1769177226990,10.28773708,127.08,127.04,2.11754479]
[1769177227586,3.19553708,127.07,127.04,2.11754479]
[1769177227988,10.28783708,127.07,127.02,1.70394916]
[1769177228190,3.19553708,127.06,127.02,2.11754479]
[1769177235892,10.28833708,127.06,127.02,2.11754479]
[1769177236795,3.19553708,127.05,127.0,7.0961]
[1769177237096,3.19553708,127.05,127.02,2.11754479]
[1769177237897,7.0928,127.06,127.02,2.11754479]
[1769177239398,10.28833708,127.06,127.02,2.11754479]
[1769177241002,3.19553708,127.05,127.02,2.11754479]
[1769177241300,3.19553708,127.05,127.01,2.11754479]
[1769177255010,3.19553708,127.05,127.01,2.11728006]
[1769177261421,3.19553708,127.05,127.01,9.21268006]
[1769177264619,3.36619627,127.08,127.03,2.11728006]
[1769177265827,3.36619627,127.08,127.05,2.11728006]
[1769177267325,3.36619627,127.07,127.02,7.0945]
[1769177267628,3.36619627,127.07,127.0,3.35305483]
[1769177267819,3.36619627,127.07,127.01,2.11728006]
[1769177268934,3.36619627,127.05,127.01,2.11728006]
[1769177280539,3.36619627,127.03,126.98,3.35305483]
[1769177280740,3.36619627,127.03,126.99,2.11728006]
[1769177281743,3.36619627,127.01,126.96,10.45145483]
[1769177281948,3.36619627,127.01,126.98,2.11728006]
[1769177282939,3.3128195,127.0,126.97,2.11728006]
[1769177284447,3.3128195,126.99,126.95,2.11728006]
[1769177287649,10.3220236,127.01,126.95,9.21598006]
[1769177288543,10.3226236,127.0,126.95,2.11728006]
[1769177293254,3.2264236,127.0,126.95,2.11728006]
[1769177295354,3.2264236,126.99,126.93,9.21728006]
[1769177295652,3.2264236,126.99,126.93,2.11728006]
[1769177296455,10.3237236,126.98,126.93,2.11728006]
[1769177296653,3.2264236,126.98,126.93,2.11728006]
[1769177297159,3.2264236,126.98,126.94,7.0995]
[1769177297657,3.2264236,126.98,126.93,9.21728006]
[1769177300664,10.3237236,126.98,126.93,9.21728006]
[1769177301362,3.2264236,126.97,126.93,2.11728006]
[1769177304962,10.3254236,126.95,126.92,2.11728006]
[1769177305161,10.3254236,126.95,126.91,2.11728006]
[1769177305464,3.2264236,126.95,126.91,2.11728006]
[1769177310459,3.2264236,126.98,126.93,2.11728006]
[1769177311864,10.3237236,126.98,126.93,2.11728006]
[1769177312066,3.2682157,126.97,126.93,2.11728006]
[1769177313166,3.2682157,126.97,126.93,9.21718006]
[1769177315370,3.2682157,126.97,126.93,2.11728006]
[1769177316866,3.2682157,126.97,126.94,2.11992963]